bitfinex/quotes_SOLUSD_20240628
["timestamp","ask_amount","ask_price","bid_price","bid_amount"]
[1719570241243,6.8736,145.49,145.45,6.8751]
[1719570241441,15.96,145.48,145.45,6.8751]
[1719570241753,6.8736,145.49,145.45,6.8751]
[1719570242258,6.873,145.5,145.46,7.36647451]
[1719570242430,22.833,145.5,145.46,7.36647451]
[1719570242756,6.873,145.5,145.47,6.8742]
[1719570243265,6.8725,145.51,145.47,6.8742]
[1719570243551,22.8325,145.51,145.47,6.8742]
[1719570243759,22.8325,145.51,145.48,6.8737]
[1719570243966,15.96,145.51,145.48,6.8737]
[1719570244130,6.872,145.52,145.48,6.8737]
[1719570244640,15.96,145.51,145.48,6.8737]
[1719570245047,22.8324,145.51,145.48,6.8737]
[1719570245358,22.8324,145.51,145.47,6.874]
[1719570245730,22.8324,145.51,145.48,6.8737]
[1719570246234,6.8724,145.51,145.48,6.8737]
[1719570246439,6.872,145.52,145.48,6.8737]
[1719570246623,22.832,145.52,145.48,6.8737]
[1719570246822,6.5454,145.55,145.45,22.6405]
[1719570247054,15.96,145.54,145.51,6.8722]
[1719570247233,6.8714,145.53,145.49,6.8731]
[1719570247546,6.871,145.54,145.5,6.8725]
[1719570247757,22.831,145.54,145.5,6.8725]
[1719570249357,6.871,145.54,145.5,6.8725]
[1719570249556,22.831,145.54,145.5,6.8725]
[1719570249735,6.871,145.54,145.5,6.8725]
[1719570249940,6.8706,145.55,145.51,6.8723]
[1719570250163,15.96,145.54,145.51,6.8723]
[1719570250831,22.8309,145.54,145.5,6.8726]
[1719570251331,6.8706,145.55,145.51,6.8723]
[1719570251652,15.96,145.54,145.51,6.8723]
[1719570251845,6.8706,145.55,145.51,6.8723]
[1719570252151,6.8706,145.55,145.49,15.96]
[1719570252152,15.96,145.54,145.49,15.96]
[1719570252357,15.96,145.53,145.48,15.96]
[1719570252730,15.96,145.54,145.49,15.96]
[1719570253030,22.831,145.54,145.5,6.8728]
[1719570253234,15.96,145.53,145.5,6.8726]
[1719570253636,22.831,145.54,145.5,6.8726]
[1719570253840,6.8706,145.55,145.51,6.8719]
[1719570254157,15.96,145.54,145.51,6.8719]
[1719570254344,22.8309,145.54,145.5,6.8726]
[1719570254538,0.2960034,145.56,145.51,15.9163]
[1719570254748,0.2960034,145.56,145.54,6.8707]
[1719570258242,0.2960034,145.56,145.55,6.8704]
[1719570258543,0.2960034,145.56,145.55,22.8304]
[1719570259538,0.2960034,145.56,145.55,6.8704]
[1719570259949,0.2960034,145.56,145.53,15.96]
[1719570259950,0.2960034,145.56,145.51,22.5477]
[1719570260152,15.96,145.55,145.52,6.8718]
[1719570260671,22.8305,145.55,145.51,22.7886]
[1719570260847,6.8712,145.54,145.5,6.8726]
[1719570261054,15.96,145.53,145.5,6.8726]
[1719570261452,15.96,145.52,145.47,15.7363]
[1719570261750,15.96,145.5,145.48,6.8737]
[1719570262065,15.96,145.5,145.47,15.7363]
[1719570262369,15.96,145.5,145.48,6.8737]
[1719570262876,6.8716,145.53,145.48,6.8737]
[1719570263047,15.96,145.51,145.49,6.8732]
[1719570263370,6.8716,145.53,145.49,6.8732]
[1719570263553,15.96,145.51,145.49,6.8732]
[1719570265567,15.96,145.51,145.45,15.96]
[1719570265568,22.8332,145.5,145.45,6.875]
[1719570265740,15.96,145.47,145.45,6.875]
[1719570265941,17.1801,145.52,145.44,6.8753]
[1719570266140,15.96,145.46,145.43,15.013]
[1719570266638,6.2951,145.51,145.45,6.8752]
[1719570266639,15.96,145.47,145.45,6.8752]
[1719570267671,13.1677,145.51,145.47,6.8738]
[1719570267877,15.96,145.48,145.47,6.8738]
[1719570268041,6.8716,145.53,145.49,6.8733]
[1719570268246,15.96,145.5,145.49,6.8733]
[1719570268448,15.96,145.51,145.49,6.8733]
[1719570268662,6.8719,145.52,145.48,6.8736]
[1719570268863,6.5803,145.55,145.43,15.013]
[1719570268864,6.8723,145.51,145.47,6.874]
[1719570269344,6.8729,145.5,145.46,6.8746]
[1719570269551,6.8724,145.51,145.47,6.8742]
[1719570269969,6.872,145.52,145.48,6.8737]
[1719570270359,6.8724,145.51,145.47,6.874]
[1719570271676,49.0076,145.54,145.43,15.013]
[1719570271855,17.1802,145.52,145.43,15.013]
[1719570272058,6.8739,145.48,145.44,6.8753]
[1719570272477,6.8734,145.49,145.45,6.8751]
[1719570274887,6.8734,145.49,145.43,15.013]
[1719570275050,6.8734,145.49,145.45,6.875]
[1719570275251,6.8738,145.48,145.45,6.875]
[1719570275668,6.8734,145.49,145.45,6.875]
[1719570275862,6.3192,145.48,145.45,6.875]
[1719570276076,6.8746,145.47,145.43,6.8758]
[1719570277368,6.8748,145.46,145.42,6.8764]
[1719570278076,6.8748,145.46,145.43,6.8761]
[1719570278300,38.1492,145.48,145.43,6.8761]
[1719570278301,6.8743,145.47,145.43,6.8761]
[1719570278580,13.1931,145.48,145.44,6.8755]
[1719570278755,13.1931,145.48,145.45,6.8752]
[1719570278756,6.3192,145.48,145.45,6.8752]
[1719570279379,6.8734,145.49,145.45,6.8752]
[1719570279591,6.8727,145.51,145.38,36.5065]
[1719570279785,6.8727,145.51,145.41,6.2641]
[1719570279980,6.01,145.52,145.49,6.8733]
[1719570280382,12.8819,145.52,145.49,6.8733]
[1719570280567,12.8819,145.52,145.48,6.8736]
[1719570281763,6.8723,145.51,145.48,6.8736]
[1719570281968,6.8723,145.51,145.47,6.8741]
[1719570284091,6.8728,145.5,145.46,6.8745]
[1719570285393,6.8739,145.48,145.44,6.8755]
[1719570285978,6.8739,145.48,145.45,6.8751]
[1719570286184,6.8734,145.49,145.45,6.8751]
[1719570286376,23.1899,145.52,145.43,16.5944]
[1719570286762,6.8733,145.49,145.45,6.8748]
[1719570287373,6.873,145.5,145.46,6.8746]
[1719570289180,6.01,145.52,145.38,15.3903]
[1719570289386,6.8754,145.45,145.41,6.8769]
[1719570289899,6.8753,145.45,145.41,6.8769]
[1719570294398,6.8753,145.45,145.42,6.8766]
[1719570294782,6.8749,145.46,145.42,6.8766]
[1719570295182,6.8744,145.47,145.43,6.8761]
[1719570295996,6.8744,145.47,145.38,15.3903]
[1719570295997,44.7113,145.48,145.44,6.8755]
[1719570296705,12.8813,145.48,145.44,6.8755]
[1719570297080,44.19298097,145.51,145.44,6.8755]
[1719570297281,6.874,145.48,145.44,6.8755]
[1719570297910,6.8743,145.47,145.43,6.876]
[1719570299088,6.8747,145.46,145.38,15.3903]
[1719570299288,6.8747,145.46,145.42,6.8764]
[1719570300285,6.8753,145.45,145.41,6.8769]
[1719570301577,6.8758,145.44,145.4,6.8774]
[1719570302704,6.8758,145.44,145.4,6.8773]
[1719570303301,49.0145,145.48,145.35,16.5944]
[1719570303302,6.2181,145.45,145.35,16.5944]
[1719570303514,6.2181,145.45,145.37,6.8787]
[1719570303515,38.0481,145.45,145.37,6.8787]
[1719570303805,6.8772,145.41,145.37,6.8789]
[1719570305176,6.8776,145.4,145.36,17.1982]
[1719570305378,17.1897,145.44,145.36,17.1982]
[1719570306708,6.8772,145.41,145.37,6.8789]
[1719570307804,6.8775,145.4,145.36,24.0775]
[1719570308718,6.8772,145.41,145.37,6.8789]
[1719570309585,6.8768,145.42,145.38,6.8784]
[1719570310617,15.94,145.4,145.38,6.8784]
[1719570311804,15.94,145.4,145.37,6.8788]
[1719570312013,15.94,145.39,145.37,6.8788]
[1719570312713,15.94,145.39,145.36,24.0775]
[1719570313019,15.94,145.37,145.35,6.8798]
[1719570313201,15.94,145.36,145.35,6.8798]
[1719570314616,6.8782,145.39,145.35,6.8798]
[1719570314800,17.1939,145.4,145.29,15.3016]
[1719570315002,31.89,145.39,145.29,15.3016]
[1719570315515,6.8798,145.36,145.32,6.881]
[1719570317537,6.8798,145.36,145.33,6.8808]
[1719570317721,6.8791,145.37,145.33,6.8808]
[1719570318116,6.8786,145.38,145.34,6.88]
[1719570318309,6.8783,145.39,145.35,6.8796]
[1719570319524,6.8785,145.38,145.34,6.8802]
[1719570323139,6.879,145.37,145.33,6.8808]
[1719570323342,6.8795,145.36,145.32,6.8809]
[1719570325545,6.879,145.37,145.33,6.8806]
[1719570328548,49.0852,145.39,145.31,6.8817]
[1719570328843,6.8801,145.35,145.31,6.8817]
[1719570330022,6.8801,145.35,145.32,6.8813]
[1719570330218,6.8808,145.34,145.29,15.3016]
[1719570330453,6.8808,145.34,145.3,6.882]
[1719570330841,6.8808,145.34,145.31,6.8818]
[1719570331218,68.0923,145.41,145.29,15.3016]
[1719570331219,6.8818,145.31,145.29,15.3016]
[1719570331455,6.8814,145.32,145.28,6.8832]
[1719570332047,6.8809,145.33,145.29,6.8827]
[1719570332256,6.8809,145.33,145.25,15.9177]
[1719570332257,6.8809,145.33,145.3,6.8823]
[1719570332415,6.8809,145.33,145.29,6.8826]
[1719570332943,6.8806,145.34,145.3,6.8819]
[1719570333323,6.8806,145.34,145.25,15.9177]
[1719570333324,6.8809,145.33,145.29,6.8825]
[1719570336838,15.96,145.31,145.29,6.8825]
[1719570338619,15.96,145.32,145.29,6.8825]
[1719570340222,15.96,145.32,145.28,6.8831]
[1719570340515,22.8415,145.32,145.28,6.8831]
[1719570341755,15.96,145.31,145.28,6.8831]
[1719570342052,15.96,145.31,145.26,15.96]
[1719570342053,15.96,145.31,145.29,6.8827]
[1719570342730,15.96,145.32,145.29,6.8827]
[1719570343226,22.8409,145.33,145.3,6.8821]
[1719570343429,15.96,145.33,145.3,6.8821]
[1719570343861,6.8792,145.37,145.25,20.72]
[1719570344025,6.4785,145.4,145.29,21.5785]
[1719570344230,22.839,145.37,145.33,6.8806]
[1719570344750,6.8784,145.39,145.32,15.96]
[1719570344959,15.96,145.37,145.32,15.96]
[1719570345142,22.8391,145.37,145.33,6.8807]
[1719570348059,6.4785,145.4,145.34,6.8803]
[1719570348263,15.96,145.37,145.34,6.8803]
[1719570349253,15.96,145.37,145.31,15.96]
[1719570350149,22.8391,145.37,145.33,6.8808]
[1719570350348,15.96,145.36,145.33,6.8808]
[1719570352140,15.96,145.36,145.34,6.8803]
[1719570352448,15.96,145.37,145.31,15.96]
[1719570352655,22.839,145.37,145.34,6.88]
[1719570352859,15.96,145.37,145.34,6.88]
[1719570358469,22.839,145.37,145.34,6.88]
[1719570359469,22.8387,145.38,145.34,6.88]
[1719570359671,22.8382,145.39,145.35,6.8798]
[1719570360471,6.8782,145.39,145.35,6.8798]
[1719570361574,15.96,145.37,145.32,6.8813]
[1719570361873,6.8796,145.36,145.32,6.8813]
[1719570362055,17.1979,145.37,145.29,21.5785]
[1719570362377,6.8815,145.32,145.29,15.0766]
[1719570362677,22.8417,145.32,145.29,15.0766]
[1719570363045,6.8818,145.31,145.28,6.8831]
[1719570363258,22.8414,145.32,145.28,6.8831]
[1719570363556,22.8418,145.31,145.28,6.8831]
[1719570363758,22.8418,145.31,145.27,6.8835]
[1719570363985,22.8418,145.31,145.26,16.104]
[1719570364281,22.8418,145.31,145.28,6.8832]
[1719570364467,15.96,145.29,145.26,16.104]
[1719570364962,15.96,145.28,145.22,32.5879]
[1719570365160,15.96,145.28,145.25,6.8843]
[1719570366152,15.96,145.28,145.24,6.8849]
[1719570366570,15.96,145.28,145.25,6.8846]
[1719570367978,6.8829,145.29,145.25,6.8846]
[1719570368182,6.8817,145.32,145.22,16.6279]
[1719570368359,6.2215,145.34,145.29,6.8824]
[1719570368681,15.96,145.32,145.3,6.8822]
[1719570368854,15.96,145.32,145.26,15.96]
[1719570369054,15.96,145.33,145.3,6.8822]
[1719570369564,22.8408,145.33,145.28,15.96]
[1719570369870,22.8408,145.33,145.29,6.8825]
[1719570370553,6.2215,145.34,145.22,16.6279]
[1719570370875,6.8823,145.3,145.27,6.8837]
[1719570371057,6.882,145.31,145.27,6.8837]
[1719570371262,6.8813,145.32,145.22,16.6279]
[1719570371475,6.2215,145.34,145.22,16.6279]
[1719570371979,6.8811,145.33,145.29,6.8826]
[1719570372562,6.8814,145.32,145.28,6.883]
[1719570373278,6.8814,145.32,145.22,48.5479]
[1719570373279,6.8814,145.32,145.29,6.8827]
[1719570373584,6.8819,145.31,145.27,6.8834]
[1719570374661,6.8815,145.32,145.28,6.8832]
[1719570375173,6.881,145.33,145.22,16.6279]
[1719570375369,6.2215,145.34,145.3,6.8819]
[1719570375669,6.2215,145.34,145.22,37.3479]
[1719570375670,6.2215,145.34,145.31,6.8815]
[1719570375878,12.31328097,145.37,145.31,6.8815]
[1719570376185,6.8801,145.35,145.31,6.8815]
[1719570376352,6.8796,145.36,145.32,6.8812]
[1719570376779,6.8799,145.35,145.31,6.8817]
[1719570377077,23.7486,145.37,145.3,6.8821]
[1719570377286,23.7486,145.37,145.29,6.8826]
[1719570377287,6.8809,145.33,145.29,6.8826]
[1719570377587,17.2,145.35,145.24,6.434]
[1719570377760,6.8826,145.3,145.26,6.8838]
[1719570377960,6.8819,145.31,145.27,6.8837]
[1719570378576,6.8819,145.31,145.28,6.8832]
[1719570380859,6.8819,145.31,145.27,6.8835]
[1719570385600,6.8819,145.31,145.28,6.8832]
[1719570385969,6.8819,145.31,145.27,6.8835]
[1719570386391,6.8819,145.31,145.28,6.8832]
[1719570387093,6.8815,145.32,145.28,6.8832]
[1719570387388,6.8806,145.34,145.3,6.8822]
[1719570387565,6.551,145.37,145.32,6.8813]
[1719570387766,6.8797,145.36,145.32,6.8813]
[1719570387972,6.88,145.35,145.32,6.8813]
[1719570388198,6.88,145.35,145.31,6.8816]
[1719570388891,6.8824,145.3,145.24,21.435]
[1719570389388,6.882,145.31,145.27,6.8836]
[1719570390386,6.8815,145.32,145.28,6.8831]
[1719570391404,6.8818,145.31,145.28,6.8831]
[1719570391573,6.8818,145.31,145.27,6.8836]
[1719570392075,6.8823,145.3,145.27,6.8836]
[1719570392279,6.882,145.31,145.27,6.8836]
[1719570392803,22.842,145.31,145.27,6.8836]
[1719570394507,15.96,145.31,145.28,6.8831]
[1719570399506,22.8415,145.32,145.29,6.8827]
[1719570399811,15.96,145.32,145.3,6.8822]
[1719570399988,22.841,145.33,145.3,6.8822]
[1719570400508,22.841,145.33,145.29,6.8826]
[1719570400818,6.8813,145.32,145.29,6.8826]
[1719570400984,22.8413,145.32,145.29,6.8826]
[1719570401187,22.8413,145.32,145.28,6.883]
[1719570402193,22.8413,145.32,145.29,6.8827]
[1719570402503,6.8813,145.32,145.29,6.8827]
[1719570402696,15.96,145.32,145.29,6.8827]
[1719570403516,22.841,145.33,145.29,6.8827]
[1719570404193,6.8806,145.34,145.3,6.8822]
[1719570404709,6.88,145.35,145.31,6.8814]
[1719570404911,6.551,145.37,145.31,6.8814]
[1719570404912,6.551,145.37,145.32,6.8809]
[1719570405092,6.8797,145.36,145.32,6.8809]
[1719570406793,6.8791,145.37,145.33,6.8807]
[1719570407714,6.8795,145.36,145.32,22.8412]
[1719570408093,15.96,145.37,145.31,22.8416]
[1719570408293,17.1956,145.39,145.31,22.8416]
[1719570408294,15.96,145.36,145.31,22.8416]
[1719570408508,15.96,145.36,145.31,6.8816]
[1719570408717,6.8801,145.35,145.31,6.8816]
[1719570410310,6.8801,145.35,145.32,6.8813]
[1719570411117,22.8396,145.36,145.32,6.8813]
[1719570414126,15.96,145.36,145.29,21.4537]
[1719570414426,22.8406,145.34,145.3,6.8819]
[1719570414723,6.8809,145.33,145.3,6.8819]
[1719570415023,15.96,145.32,145.3,6.8822]
[1719570416099,15.96,145.33,145.3,6.8822]
[1719570416702,22.8409,145.33,145.3,6.8822]
[1719570417932,22.8409,145.33,145.29,15.0226]
[1719570418103,22.8409,145.33,145.29,21.9051]
[1719570420324,22.8426,145.3,145.26,6.8838]
[1719570420514,22.8425,145.3,145.26,6.8838]
[1719570421027,22.842,145.31,145.27,6.8836]
[1719570424404,11.83048097,145.36,145.25,22.0907]
[1719570424602,22.8412,145.33,145.28,15.96]
[1719570425034,22.8412,145.33,145.29,6.8827]
[1719570425731,6.8814,145.32,145.28,22.8431]
[1719570425934,22.8414,145.32,145.28,6.8831]
[1719570427938,6.8814,145.32,145.28,6.8831]
[1719570433470,6.8823,145.3,145.25,22.0907]
[1719570433618,15.96,145.3,145.25,15.5022]
[1719570433812,6.883,145.29,145.25,22.3864]
[1719570434214,6.883,145.29,145.26,6.8842]
[1719570434519,22.8423,145.3,145.26,6.8842]
[1719570435940,6.8829,145.29,145.25,15.5022]
[1719570436113,22.8429,145.29,145.25,22.3865]
[1719570436438,22.8434,145.28,145.25,22.3868]
[1719570436637,6.8828,145.29,145.25,22.3868]
[1719570437133,17.2027,145.33,145.25,15.5022]
[1719570437345,6.8813,145.33,145.29,6.8827]
[1719570437552,22.8413,145.33,145.29,6.8827]
[1719570437767,15.96,145.34,145.3,6.8821]
[1719570438042,22.8404,145.34,145.3,6.8821]
[1719570438755,6.8791,145.37,145.33,6.8808]
[1719570439045,10.26735005,145.4,145.34,6.8802]
[1719570439046,6.8786,145.38,145.34,6.8802]
[1719570439223,22.8386,145.38,145.34,6.8802]
[1719570439738,6.6656,145.4,145.35,6.8797]
[1719570439926,6.8786,145.38,145.33,15.96]
[1719570440130,6.8786,145.38,145.34,6.88]
[1719570441234,6.8786,145.38,145.33,16.279]
[1719570441235,15.96,145.38,145.33,16.279]
[1719570441438,6.8805,145.34,145.3,22.8828]
[1719570441643,6.8809,145.33,145.3,16.0007]
[1719570442420,22.8405,145.34,145.3,22.8829]
[1719570445254,6.8805,145.34,145.3,22.8829]
[1719570445557,22.8401,145.35,145.31,6.8818]
[1719570446448,63.84,145.39,145.3,16.0007]
[1719570446626,20.0,145.38,145.3,31.9607]
[1719570447333,6.8802,145.35,145.31,6.8817]
[1719570447526,6.8802,145.35,145.3,31.9607]
[1719570447527,6.8805,145.34,145.3,22.8828]
[1719570447723,20.0,145.38,145.3,31.9607]
[1719570447724,6.88,145.35,145.3,31.9607]
[1719570448250,15.96,145.35,145.32,6.8813]
[1719570448487,6.8799,145.35,145.32,6.8813]
[1719570448638,6.8799,145.35,145.31,6.8816]
[1719570449026,20.0,145.38,145.3,16.0007]
[1719570449347,15.96,145.34,145.31,6.8815]
[1719570449556,22.84,145.35,145.31,6.8815]
[1719570452527,6.8804,145.34,145.3,38.8428]
[1719570452732,6.8808,145.33,145.3,38.8428]
[1719570452932,6.8805,145.34,145.3,22.8828]
[1719570453145,22.8405,145.34,145.3,22.8828]
[1719570454438,6.8814,145.32,145.3,16.0007]
[1719570454639,22.841,145.33,145.3,16.0007]
[1719570455229,22.8406,145.34,145.3,22.883]
[1719570456426,6.8806,145.34,145.3,22.883]
[1719570456832,22.8406,145.34,145.3,22.883]
[1719570460559,22.8406,145.34,145.3,22.883]
[1719570461562,6.8808,145.33,145.3,22.883]
[1719570461748,22.8406,145.34,145.3,22.883]
[1719570465074,6.8806,145.34,145.3,22.883]
[1719570465679,20.0,145.38,145.3,16.0007]
[1719570465882,6.8791,145.37,145.33,6.8807]
[1719570466178,6.8786,145.38,145.34,6.8802]
[1719570466349,22.8386,145.38,145.34,6.8802]
[1719570466673,6.6656,145.4,145.34,6.8802]
[1719570466674,6.879,145.37,145.34,6.8802]
[1719570467040,6.8786,145.38,145.34,6.8802]
[1719570468442,6.879,145.37,145.34,6.8802]
[1719570468654,6.879,145.37,145.33,22.8407]
[1719570475087,6.8786,145.38,145.34,22.8401]
[1719570475459,6.879,145.37,145.34,15.96]
[1719570476355,6.8786,145.38,145.35,15.96]
[1719570476562,6.8786,145.38,145.35,38.1941]
[1719570476882,5.76228097,145.42,145.36,22.8391]
[1719570477089,6.8779,145.4,145.36,22.8391]
[1719570477277,6.8768,145.42,145.39,15.96]
[1719570478288,6.8762,145.43,145.39,22.838]
[1719570479059,6.8762,145.43,145.4,15.96]
[1719570480165,6.8758,145.44,145.4,40.40097031]
[1719570480371,6.8758,145.44,145.41,15.96]
[1719570481683,6.8761,145.43,145.41,15.96]
[1719570481982,6.8761,145.43,145.4,32.1482]
[1719570482703,6.8761,145.43,145.4,39.0257]
[1719570483472,6.8758,145.44,145.4,39.0257]
[1719570484584,6.8762,145.43,145.4,32.1482]
[1719570484784,6.8767,145.42,145.4,16.1882]
[1719570485271,22.8363,145.43,145.4,16.1882]
[1719570488894,6.8763,145.43,145.4,16.1882]
[1719570489090,6.8763,145.43,145.4,23.0657]
[1719570489295,22.8358,145.44,145.4,23.0657]
[1719570489905,17.1882,145.45,145.36,15.7915]
[1719570490078,6.8781,145.39,145.36,15.7915]
[1719570490274,15.96,145.38,145.35,6.8798]
[1719570490479,15.96,145.38,145.36,6.8794]
[1719570490679,15.96,145.39,145.36,6.8794]
[1719570491495,22.838,145.39,145.36,6.8794]
[1719570491805,22.8377,145.4,145.36,6.8794]
[1719570492021,22.8377,145.4,145.37,6.8789]
[1719570492505,22.8377,145.4,145.36,6.8792]
[1719570495887,6.8781,145.39,145.36,6.8792]
[1719570497113,6.8781,145.39,145.35,15.96]
[1719570497509,6.8781,145.39,145.36,6.8794]
[1719570499899,6.8781,145.39,145.35,22.8397]
[1719570501118,6.8785,145.38,145.35,15.96]
[1719570501317,6.8785,145.38,145.34,22.8402]
[1719570502194,15.96,145.36,145.29,15.0704]
[1719570502408,6.8805,145.34,145.3,22.8419]
[1719570502713,63.84,145.39,145.3,15.96]
[1719570502921,6.8797,145.36,145.32,6.8812]
[1719570503111,6.879,145.37,145.33,6.8808]
[1719570503308,22.8395,145.36,145.32,6.8811]
[1719570504312,15.96,145.36,145.33,6.8807]
[1719570505096,6.8794,145.36,145.33,6.8807]
[1719570505296,6.8794,145.36,145.32,6.8811]
[1719570505498,6.8794,145.36,145.32,22.8411]
[1719570507393,6.88,145.35,145.32,6.8811]
[1719570507591,6.88,145.35,145.31,22.8416]
[1719570508401,6.88,145.35,145.31,6.8816]
[1719570508699,6.88,145.35,145.31,22.8416]
[1719570510620,6.88,145.35,145.31,6.8816]
[1719570511208,6.88,145.35,145.32,6.8813]
[1719570511405,63.84,145.39,145.29,15.0704]
[1719570511406,6.8807,145.34,145.29,15.0704]
[1719570511721,6.8807,145.34,145.29,31.0304]
[1719570512023,6.8807,145.34,145.3,6.882]
[1719570512227,6.8807,145.34,145.31,6.8818]
[1719570512799,6.88,145.35,145.31,6.8818]
[1719570514418,6.88,145.35,145.32,6.8813]
[1719570514626,6.8796,145.36,145.32,6.8813]
[1719570516928,6.88,145.35,145.32,6.8813]
[1719570520031,6.88,145.35,145.31,6.8816]
[1719570520515,6.88,145.35,145.32,6.8812]
[1719570521423,69.60228097,145.39,145.33,6.8807]
[1719570521627,22.8391,145.37,145.33,6.8807]
[1719570522499,6.8791,145.37,145.33,6.8807]
[1719570525131,6.8795,145.36,145.33,6.8807]
[1719570525426,23.3189,145.41,145.34,6.8803]
[1719570525605,15.96,145.38,145.34,6.8803]
[1719570526334,6.879,145.37,145.33,22.8406]
[1719570526521,6.8795,145.36,145.33,22.8406]
[1719570527032,6.8795,145.36,145.33,6.8806]
[1719570527218,6.8795,145.36,145.32,22.8411]
[1719570528011,23.3189,145.41,145.32,15.96]
[1719570528224,6.8773,145.41,145.37,6.8788]
[1719570528549,6.8773,145.41,145.37,22.8388]
[1719570529055,6.8776,145.4,145.37,22.8388]
[1719570529530,6.8767,145.42,145.38,22.8384]
[1719570529738,6.8766,145.42,145.39,6.8779]
[1719570529938,6.8766,145.42,145.38,15.96]
[1719570529939,6.8766,145.42,145.38,22.8383]
[1719570530108,6.8779,145.4,145.34,15.4931]
[1719570530433,15.96,145.39,145.34,38.3334]
[1719570530617,6.8788,145.38,145.34,38.3334]
[1719570531010,22.8382,145.39,145.35,6.8798]
[1719570531211,6.8782,145.39,145.35,22.8398]
[1719570531434,6.8782,145.39,145.36,6.8794]
[1719570531732,22.8377,145.4,145.36,6.8794]
[1719570532117,6.8777,145.4,145.36,6.8794]
[1719570535739,6.8777,145.4,145.36,22.8394]
[1719570538725,6.8771,145.41,145.37,6.8787]
[1719570539034,9.28211521,145.4,145.37,6.8787]
[1719570539236,6.8771,145.41,145.37,6.8787]
[1719570541738,6.878,145.39,145.35,6.8796]
[1719570542635,6.8777,145.4,145.36,6.8792]
[1719570549833,30.8536885,145.45,145.34,15.4931]
[1719570550036,6.8787,145.38,145.34,22.3732]
[1719570550251,22.8387,145.38,145.34,22.3732]
[1719570550457,6.8787,145.38,145.35,6.8798]
[1719570553445,46.47228097,145.44,145.36,6.8791]
[1719570553446,6.8776,145.4,145.36,6.8791]
[1719570553648,6.8776,145.4,145.36,22.8391]
[1719570553855,5.76228097,145.44,145.38,6.8783]
[1719570554062,6.8771,145.42,145.38,6.8783]
[1719570554553,6.8771,145.42,145.38,22.8383]
[1719570554928,6.8772,145.41,145.38,22.8383]
[1719570555155,3.5967885,145.46,145.4,6.8775]
[1719570555352,46.27778097,145.48,145.39,22.8379]
[1719570555353,15.96,145.44,145.39,22.8379]
[1719570555535,16.16346126,145.43,145.39,22.8379]
[1719570555736,6.8762,145.43,145.39,22.8379]
[1719570556455,6.8757,145.44,145.4,6.8775]
[1719570561447,6.8757,145.44,145.4,22.8375]
[1719570561650,6.8753,145.45,145.41,6.8769]
[1719570562153,5.76228097,145.48,145.39,15.2665]
[1719570562354,15.96,145.51,145.45,15.96]
[1719570562560,15.96,145.51,145.46,22.8346]
[1719570562561,16.16321415,145.5,145.46,22.8346]
[1719570562742,6.8731,145.5,145.46,22.8346]
[1719570564362,6.8728,145.5,145.47,6.874]
[1719570564570,6.8728,145.5,145.46,22.8345]
[1719570564868,6.8733,145.49,145.46,15.96]
[1719570565164,6.8733,145.49,145.45,39.4902]